fUST/lending_fUST_20251228
["ID","MTS","AMOUNT","RATE_DAILY","PERIOD"]
[399937115,1766896881995,-309.66950656,0.00015887,2]
[399937116,1766896882020,-500.0,0.00015887,2]
[399937117,1766896882045,-394.98362985,0.00015887,2]
[399937118,1766896882071,-500.0,0.00015887,2]
[399937119,1766896882096,-500.0,0.00015887,2]
[399937120,1766896882123,-500.0,0.00015887,2]
[399937121,1766896882149,-311.73239509,0.00015887,2]
[399937122,1766896882176,-500.0,0.00015887,2]
[399937123,1766896882205,-80693.31022361,0.00015888,2]
[399937124,1766897144828,-398.22954342,0.00014919,2]
[399937125,1766897144850,-529.91420658,0.00014938,2]
[399937126,1766897149129,-469.08579342,0.00014938,2]
[399937127,1766897149153,-202.85463034,0.00015019,2]
[399937128,1766897149176,-1000.0,0.000152,2]
[399937129,1766897149202,-406.48,0.000152,2]
[399937130,1766897149230,-406.48,0.000155,2]
[399937131,1766897149255,-406.48,0.000158,2]
[399937132,1766897149280,-304.76,0.00015878,3]
[399937133,1766897149307,-318.8911634,0.00015882,2]
[399937134,1766897149332,-300.0,0.00015882,2]
[399937135,1766897149358,-874.0,0.00015882,2]
[399937136,1766897149385,-500.0,0.00015883,2]
[399937137,1766897149411,-500.0,0.00015883,2]
[399937138,1766897149436,-8.27552302,0.00015883,2]
[399937139,1766897205177,-222.8,0.000152,2]
[399937140,1766897205198,-222.8,0.000155,2]
[399937141,1766897205219,-222.8,0.000158,2]
[399937142,1766897205240,-500.0,0.00015882,2]
[399937143,1766897205261,-500.0,0.00015882,2]
[399937144,1766897205283,-500.0,0.00015882,2]
[399937145,1766897205307,-500.0,0.00015882,2]
[399937146,1766897205328,-500.0,0.00015882,2]
[399937147,1766897205350,-500.0,0.00015882,2]
[399937148,1766897205372,-500.0,0.00015882,2]
[399937149,1766897205392,-233.37142481,0.00015882,2]
[399937150,1766897236093,-300.0,0.00015881,2]
[399937151,1766897236116,-125.1197945,0.00015882,2]
[399937152,1766897251078,-141.50878069,0.00015882,2]
[399937153,1766897251100,-33.32638527,0.00015882,2]
[399937154,1766897285483,762.092019,0.00013699,2]
[399937159,1766897432024,-1285.72182613,0.00015781,2]
[399937160,1766897432034,-198.79753773,0.00015784,2]
[399937161,1766897432044,-300.0,0.00015786,2]
[399937162,1766897432053,-500.0,0.00015787,2]
[399937163,1766897432063,-500.0,0.00015787,2]
[399937164,1766897432085,-318.21267656,0.00015787,2]
[399937165,1766897432096,-500.0,0.00015787,2]
[399937166,1766897432106,-500.0,0.00015787,2]
[399937167,1766897432117,-669.0,0.00015787,2]
[399937168,1766897432127,-497.56806566,0.00015788,2]
[399937169,1766897432140,-1330.10052848,0.00015788,2]
[399937170,1766897432151,-618.04958415,0.00015788,2]
[399937171,1766897432166,-2209.84117239,0.00015788,2]
[399937172,1766897432179,-330.25242726,0.00015788,2]
[399937173,1766897432191,-469.29810371,0.00015788,2]
[399937174,1766897432205,-66560.17524099,0.00015788,2]
[399937175,1766897432217,-4469.96283509,0.00015788,2]
[399937205,1766897438148,-500.0,0.00015786,2]
[399937207,1766897438158,-280.29263206,0.00015786,2]
[399937251,1766897440560,-219.70736794,0.00015786,2]
[399937252,1766897440570,-500.0,0.00015786,2]
[399937253,1766897440580,-500.0,0.00015786,2]
[399937254,1766897440590,-500.0,0.00015786,2]
[399937255,1766897440600,-500.0,0.00015786,2]
[399937256,1766897440609,-500.0,0.00015786,2]
[399937257,1766897440619,-500.0,0.00015786,2]
[399937258,1766897440628,-500.0,0.00015786,2]
[399937259,1766897440638,-500.0,0.00015786,2]
[399937260,1766897440647,-500.0,0.00015786,2]
[399937261,1766897440657,-566.06303337,0.00015786,2]
[399937262,1766897440667,-500.0,0.00015786,2]
[399937263,1766897440677,-500.0,0.00015786,2]
[399937264,1766897440686,-391.8182229,0.00015786,2]
[399937265,1766897440696,-500.0,0.00015786,2]
[399937266,1766897440706,-214.79966191,0.00015786,2]
[399937267,1766897440715,-500.0,0.00015786,2]
[399937268,1766897440725,-500.0,0.00015786,2]
[399937269,1766897440734,-500.0,0.00015786,2]
[399937270,1766897440744,-467.31867626,0.00015786,2]
[399937271,1766897440753,-500.0,0.00015786,2]
[399937272,1766897440763,-500.0,0.00015786,2]
[399937273,1766897440772,-500.0,0.00015786,2]
[399937274,1766897440782,-500.0,0.00015786,2]
[399937275,1766897440792,-340.99907831,0.00015786,2]
[399937276,1766897441365,-47.23553272,0.00015786,2]
[399937290,1766897445182,-111.76538897,0.00015786,2]
[399937291,1766897445192,-377.3203249,0.00015786,2]
[399937292,1766897445228,150.0,6.063e-05,2]
[399937294,1766897481253,16.051731,0.00013273,2]
[399937295,1766897481279,252.40019305,0.00013273,2]
[399937296,1766897482805,500.90623344,0.00013273,2]
[399937297,1766897484604,501.49583589,0.00013273,2]
[399937298,1766897509438,150.0,6.058e-05,2]
[399937299,1766897509852,150.0,6.347e-05,2]
[399937300,1766897510291,150.0,6.635e-05,2]
[399937301,1766897510761,150.0,6.924e-05,2]
[399937302,1766897527183,313.43675168,0.00013273,2]
[399937303,1766897527210,501.13540708,0.00013273,2]
[399937304,1766897527240,501.04856669,0.00013273,2]
[399937305,1766897527271,161.68498561,0.00013273,2]
[399937306,1766897527305,503.376579,0.00013273,2]
[399937307,1766897530821,500.4803021,0.00013273,2]
[399937308,1766897531324,500.37028572,0.00013273,2]
[399937309,1766897533228,500.15596163,0.00013273,2]
[399937310,1766897535015,502.44795415,0.00013273,2]
[399937311,1766897536195,501.91551651,0.00013273,2]
[399937312,1766897536574,504.37208158,0.00013273,2]
[399937313,1766897536604,500.78345836,0.00013273,2]
[399937314,1766897536630,501.47955833,0.00013273,2]
[399937315,1766897536662,607.59034005,0.00013273,2]
[399937316,1766897536702,500.59340868,0.00013273,2]
[399937317,1766897536824,500.34612372,0.00013273,2]
[399937318,1766897592403,-185.02516817,0.00013273,2]
[399937319,1766897597482,-303.24119308,0.00013272,2]
[399937320,1766897599458,-168.77558637,0.00013272,2]
[399937322,1766897601472,-215.39625916,0.00013272,2]
[399937323,1766897607283,-431.22441363,0.00013272,2]
[399937324,1766897609388,-81.36254776,0.00013272,2]
[399937325,1766897609410,-170.50689466,0.00013273,2]
[399937326,1766897610906,-145.19424236,0.00013273,2]
[399937327,1766897610928,-87.54005606,0.00013273,2]
[399937328,1766897613103,-222.52678573,0.00013273,2]
[399937329,1766897634803,10000.0,0.00030137,120]
[399937330,1766897644520,10000.0,0.00030137,120]
[399937331,1766897646003,928.14375,0.00013044,2]
[399937332,1766897650774,10000.0,0.00030137,120]
[399937333,1766897651662,-346.55133339,0.00013044,2]
[399937334,1766897654834,-425.01692761,0.00013044,2]
[399937335,1766897657895,-338.13897447,0.00013044,2]
[399937336,1766897659808,10000.0,0.00030137,120]
[399937337,1766897661891,-540.76783046,0.00013044,2]
[399937338,1766897665095,-352.39986404,0.00013044,2]
[399937339,1766897665758,10000.0,0.00030137,120]
[399937340,1766897669678,-154.69,0.00013044,2]
[399937341,1766897672136,10000.0,0.00030137,120]
[399937342,1766897673469,-293.0672473,0.00013044,2]
[399937343,1766897677545,-351.07934995,0.00013044,2]
[399937344,1766897682106,-151.4748614,0.00013044,2]
[399937345,1766897685253,-394.20694168,0.00013044,2]
[399937346,1766897686820,-151.88,0.00013044,2]
[399937347,1766897689326,-316.69797374,0.00013044,2]
[399937348,1766897693118,-151.3,0.00013044,2]
[399937349,1766897695909,-104.58494596,0.00013044,2]
[399937350,1766897695931,-115.74407505,0.00013158,2]
[399937365,1766898011192,-151.62,0.00013158,2]
[399937366,1766898013444,-155.7024382,0.00013158,2]
[399937367,1766898016705,-192.6775618,0.00013158,2]
[399937368,1766898016729,-4.41462413,0.00013213,2]
[399937369,1766898058265,190.6363907,0.0001259,2]
[399937374,1766898161076,-298.7,0.00013173,2]
[399937375,1766898162585,-444.45532266,0.00013173,2]
[399937376,1766898166448,-300.0,0.00013173,2]
[399937377,1766898166830,153.7434478,0.00030134,120]
[399937378,1766898170397,-177.93216954,0.00013173,2]
[399937379,1766898173288,-200.23651137,0.00013173,2]
[399937380,1766898177387,-350.18799051,0.00013173,2]
[399937381,1766898180875,-169.32352975,0.00013173,2]
[399937382,1766898180898,-104.97140226,0.00013213,2]
[399937383,1766898346126,-230.88952067,0.0001324,2]
[399937384,1766898346148,-338.84119035,0.00013267,2]
[399937386,1766898435098,-300.0,0.00013265,2]
[399937387,1766898435121,-500.0,0.00013266,2]
[399937388,1766898435146,-500.0,0.00013266,2]
[399937389,1766898435170,-71.56847931,0.00013266,2]
[399937390,1766898437208,1000.0,0.00013166,2]
[399937391,1766898442257,1634.6264589,0.00012545,2]
[399937392,1766898547110,-1200.0,0.00013267,2]
[399937393,1766898547131,-205.14,0.00013268,2]
[399937394,1766898547152,-300.0,0.0001327,2]
[399937395,1766898547174,-468.31107357,0.00013271,2]
[399937396,1766898547199,-500.0,0.00013271,2]
[399937397,1766898547220,-436.36882649,0.00013271,2]
[399937398,1766898547242,-500.0,0.00013271,2]
[399937399,1766898547262,-500.0,0.00013271,2]
[399937400,1766898547283,-500.0,0.00013271,2]
[399937401,1766898547304,-500.0,0.00013271,2]
[399937402,1766898547324,-500.0,0.00013271,2]
[399937403,1766898547346,-389.41140917,0.00013271,2]
[399937404,1766898552851,-221.61743981,0.00013173,2]
[399937405,1766898556861,2560.0,0.00015,3]
[399937406,1766898556925,-151.3,0.00013173,2]
[399937407,1766898560113,-183.49966263,0.00013173,2]
[399937408,1766898561712,-169.64791191,0.00013173,2]
[399937409,1766898565570,-269.84034922,0.00013173,2]
[399937410,1766898566104,-702.32571979,0.00013173,2]
[399937411,1766898566133,-110.58859083,0.00013271,2]
[399937412,1766898566155,-500.0,0.00013271,2]
[399937413,1766898566176,-500.0,0.00013271,2]
[399937414,1766898566200,-500.0,0.00013271,2]
[399937415,1766898566224,-500.0,0.00013271,2]
[399937416,1766898566245,-500.0,0.00013271,2]
[399937417,1766898566266,-500.0,0.00013271,2]
[399937418,1766898566287,-500.0,0.00013271,2]
[399937419,1766898566307,-556.60630334,0.00013271,2]
[399937420,1766898566326,-500.0,0.00013271,2]
[399937421,1766898566346,-500.0,0.00013271,2]
[399937422,1766898566366,-500.0,0.00013272,2]
[399937423,1766898566388,-500.0,0.00013272,2]
[399937424,1766898566407,-460.82776148,0.00013272,2]
[399937425,1766898566429,-500.0,0.00013272,2]
[399937426,1766898566449,-599.91342276,0.00013272,2]
[399937427,1766898566470,-500.0,0.00013272,2]
[399937428,1766898566491,-214.09528483,0.00013272,2]
[399937429,1766898566512,-500.0,0.00013272,2]
[399937430,1766898566532,-172.57943303,0.00013272,2]
[399937431,1766898566551,-500.90610181,0.00013273,2]
[399937432,1766898566569,-500.88761996,0.00013273,2]
[399937433,1766898566588,-501.19052166,0.00013273,2]
[399937434,1766898566609,-500.67255836,0.00013273,2]
[399937435,1766898566628,-500.0,0.00013273,2]
[399937436,1766898566646,-501.02632081,0.00013273,2]
[399937437,1766898566666,-498.90150153,0.00013273,2]
[399937438,1766898566684,-500.0,0.00013273,2]
[399937439,1766898566703,-500.0,0.00013273,2]
[399937440,1766898566722,-500.47428452,0.00013273,2]
[399937441,1766898566740,-216.84427148,0.00013273,2]
[399937442,1766898566759,-556.89525904,0.00013273,2]
[399937443,1766898566778,-501.65399392,0.00013273,2]
[399937444,1766898566798,-500.30812783,0.00013273,2]
[399937445,1766898566817,-630.93323461,0.00013273,2]
[399937446,1766898566836,-500.17651465,0.00013273,2]
[399937447,1766898566859,-500.0,0.00013273,2]
[399937448,1766898566878,-500.0,0.00013273,2]
[399937449,1766898566900,-500.0,0.00013273,2]
[399937450,1766898566920,-500.19007062,0.00013273,2]
[399937451,1766898566940,-263.94304814,0.00013273,2]
[399937452,1766898566960,-528.39677405,0.00013273,2]
[399937453,1766898566979,-500.0,0.00013273,2]
[399937454,1766898567000,-500.0,0.00013273,2]
[399937455,1766898567020,-467.04458882,0.00013273,2]
[399937456,1766898567039,-500.0,0.00013273,2]
[399937457,1766898567058,-500.29636723,0.00013273,2]
[399937458,1766898567077,-391.04679219,0.00013273,2]
[399937459,1766898574090,-109.4059118,0.00013273,2]
[399937460,1766898574110,-500.0,0.00013273,2]
[399937461,1766898574130,-351.07934995,0.00013273,2]
[399937462,1766898574151,-350.18799051,0.00013273,2]
[399937463,1766898574172,-394.20694168,0.00013273,2]
[399937464,1766898574194,-500.0,0.00013273,2]
[399937465,1766898574226,-500.0,0.00013273,2]
[399937466,1766898574247,-500.31926671,0.00013273,2]
[399937467,1766898574268,-217.72410985,0.00013273,2]
[399937468,1766898574288,-498.91968071,0.00013273,2]
[399937469,1766898574307,-165.36978428,0.00013273,2]
[399937470,1766898574326,-283.08747181,0.00013273,2]
[399937471,1766898574346,-500.0,0.00013273,2]
[399937472,1766898574366,-500.92487866,0.00013273,2]
[399937473,1766898574386,-500.92466632,0.00013273,2]
[399937474,1766898574406,-171.42672316,0.00013273,2]
[399937475,1766898574432,-535.6536058,0.00013273,2]
[399937476,1766898574453,-500.52768484,0.00013273,2]
[399937477,1766898574479,-210.47525398,0.00013273,2]
[399937478,1766898574501,-500.27898398,0.00013273,2]
[399937479,1766898574521,-185.26423373,0.00013273,2]
[399937480,1766898574541,-500.19564209,0.00013273,2]
[399937481,1766898574561,-159.17036461,0.00013273,2]
[399937482,1766898574580,-500.20081422,0.00013273,2]
[399937483,1766898574603,-600.83671251,0.00013273,2]
[399937484,1766898574622,-500.30204497,0.00013273,2]
[399937485,1766898574641,-151.4748614,0.00013273,2]
[399937486,1766898574662,-501.52238004,0.00013273,2]
[399937487,1766898574681,-500.0,0.00013273,2]
[399937488,1766898588027,1280.0,0.00015,3]
[399937489,1766898606954,204.98527677,0.00013273,2]
[399937490,1766898615080,352.39986404,0.00013273,2]
[399937491,1766898615387,177.61652026,0.00013273,2]
[399937492,1766898615531,500.0,0.00013273,2]
[399937514,1766898632241,-300.0,0.00013536,2]
[399937515,1766898632250,-591.32187346,0.00013536,2]
[399937523,1766898638394,-608.67812654,0.00013536,2]
[399937524,1766898638404,-300.0,0.00013537,2]
[399937525,1766898638414,-300.0,0.00013537,2]
[399937526,1766898638424,-300.0,0.00013537,2]
[399937527,1766898638434,-300.0,0.00013537,2]
[399937528,1766898638444,-300.0,0.00013537,2]
[399937529,1766898638454,-300.0,0.00013537,2]
[399937530,1766898638463,-300.0,0.00013537,2]
[399937531,1766898638473,-300.0,0.00013537,2]
[399937532,1766898638484,-300.0,0.00013537,2]
[399937533,1766898638494,-300.0,0.00013537,2]
[399937534,1766898638504,-300.0,0.00013537,2]
[399937535,1766898638514,-300.0,0.00013537,2]
[399937536,1766898638524,-300.0,0.00013537,2]
[399937537,1766898638533,-300.0,0.00013537,2]
[399937538,1766898638543,-300.0,0.00013537,2]
[399937539,1766898638552,-600.0,0.00013537,2]
[399937540,1766898638562,-205.14,0.00013542,2]
[399937541,1766898638572,-300.0,0.00013673,2]
[399937542,1766898638582,-500.0,0.00013698,2]
[399937543,1766898638592,-500.0,0.00013698,2]
[399937544,1766898638601,-500.4581914,0.00013699,2]
[399937545,1766898638611,-500.0,0.00013699,2]
[399937546,1766898638621,-501.41897014,0.00013699,2]
[399937547,1766898638631,-501.58622365,0.00013699,2]
[399937548,1766898638640,-158.26428542,0.00013699,2]
[399937549,1766898638650,-209.44,0.000138,2]
[399937550,1766898638659,-205.14824824,0.00013816,2]
[399937551,1766898638669,-500.0,0.0001382,2]
[399937552,1766898638680,-450.7340337,0.0001382,2]
[399937553,1766898638689,-223.42620229,0.00013821,2]
[399937554,1766898638699,-346.75783046,0.00013821,2]
[399937555,1766898638708,-199.13796001,0.00013821,2]
[399937556,1766898638718,-1000.0,0.00013821,2]
[399937557,1766898638727,-217.49202294,0.00013821,2]
[399937558,1766898638736,-202.19630194,0.00013821,2]
[399937559,1766898638746,-319.23326347,0.00013821,2]
[399937560,1766898638756,-301.71144148,0.00013821,2]
[399937561,1766898638765,-365.5282839,0.00013821,2]
[399937562,1766898638775,-304.98119548,0.00013821,2]
[399937563,1766898638784,-150.13370657,0.00013821,2]
[399937564,1766898638794,-204.97300329,0.00013821,2]
[399937565,1766898638805,-209.44,0.000141,2]
[399937566,1766898638814,-601.08776981,0.00014247,2]
[399937567,1766898638824,-1500.0,0.00014368,2]
[399937568,1766898638834,-209.44,0.000145,2]
[399937569,1766898638844,-209.44,0.000148,2]
[399937570,1766898638854,-420.0,0.00014836,2]
[399937571,1766898638866,-1680.0,0.0001489,2]
[399937572,1766898638878,-720.0,0.00014891,2]
[399937573,1766898638887,-170.16188114,0.00014916,2]
[399937574,1766898638898,-434.81966671,0.00015,2]
[399937575,1766898638908,-209.44,0.000151,2]
[399937576,1766898638918,-1000.0,0.000152,2]
[399937577,1766898638927,-272.44963439,0.0001524,2]
[399937578,1766898638936,-209.44,0.000155,2]
[399937579,1766898638947,-5112.85194844,0.00015687,2]
[399937580,1766898639265,-541.086,0.00015687,2]
[399937581,1766898639276,-3053.21956905,0.00015687,2]
[399937582,1766898639288,-834.65882111,0.00015687,2]
[399937583,1766898639301,-552.14307099,0.00015687,2]
[399937584,1766898639312,-653.31695367,0.00015687,2]
[399937585,1766898639324,-1468.70121829,0.00015687,2]
[399937586,1766898639335,-459596.41517113,0.00015687,2]
[399937630,1766898640920,-3e-08,0.00015537,2]
[399937789,1766898668007,150.0,6.065e-05,2]
[399937790,1766898668462,150.0,6.354e-05,2]
[399937791,1766898668949,150.0,6.642e-05,2]
[399937792,1766898669395,150.0,6.931e-05,2]
[399937793,1766898669837,150.0,7.22e-05,2]
[399937794,1766898670328,150.0,7.509e-05,2]
[399937795,1766898670921,157.57,7.798e-05,2]
[399937796,1766898671866,180.08,8.086e-05,2]
[399937797,1766898672128,202.59,8.375e-05,2]
[399937798,1766898673048,225.1,8.664e-05,2]
[399937799,1766898673363,426.39885144,0.00013273,2]
[399937800,1766898776214,1824.63639838,0.00013166,2]
[399937801,1766898851053,-274.29493201,0.00013273,2]
[399937802,1766898851075,-231.90493201,0.00013273,2]
[399937803,1766898851097,-154.17130961,0.00013273,2]
[399937804,1766898853443,4581.51214399,0.00013166,2]
[399937805,1766899033047,-297.51181117,0.00013272,2]
[399937806,1766899061658,-2.48818883,0.00013272,2]
[399937807,1766899061683,-401.22808408,0.00013272,2]
[399937808,1766899063249,-260.38076772,0.00013272,2]
[399937809,1766899064305,403.71627291,0.00013172,2]
[399937810,1766899064791,-263.79218621,0.00013272,2]
[399937811,1766899076066,-193.41387737,0.00013272,2]
[399937812,1766899078389,-81.18508462,0.00013272,2]
[399937813,1766899078413,-121.79662914,0.00013272,2]
[399937814,1766899080077,-178.20337086,0.00013272,2]
[399937815,1766899080102,-255.56405877,0.00013272,2]
[399937816,1766899080126,-5.00775594,0.00013273,2]
[399937817,1766899088967,1228.96631496,0.00013172,2]
[399937818,1766899166302,-214.15,0.00013272,2]
[399937819,1766899301081,-300.0,0.00013271,2]
[399937820,1766899301107,-31.41104305,0.00013272,2]
[399937821,1766899304330,-219.04173454,0.00013272,2]
[399937822,1766899304353,-16.89528635,0.00013272,2]
[399937823,1766899307058,-348.69452026,0.00013272,2]
[399937824,1766899309290,-445.26019339,0.00013272,2]
[399937825,1766899309315,-109.83317094,0.00013272,2]
[399937826,1766899312104,-288.30521601,0.00013272,2]
[399937827,1766899315653,-300.0,0.00013272,2]
[399937828,1766899317304,903.78788459,0.00013172,2]
[399937829,1766899318351,-423.52193153,0.00013272,2]
[399937830,1766899326337,702.70040748,0.00013172,2]
[399937831,1766899331159,-78.33968152,0.00013272,2]
[399937832,1766899331189,-397.26253081,0.00013272,2]
[399937833,1766899332988,-210.73746919,0.00013272,2]
[399937834,1766899333017,-90.03253081,0.00013272,2]
[399937835,1766899334465,-209.96746919,0.00013272,2]
[399937836,1766899334668,-21.69097466,0.00013273,2]
[399937837,1766899337131,-242.81977826,0.00013273,2]
[399937838,1766899339260,-163.69870296,0.00013273,2]
[399937839,1766899341895,-66.78278818,0.00013273,2]
[399937840,1766899341924,-106.00163285,0.00013273,2]
[399937841,1766899342894,163.69870296,0.00013172,2]
[399937842,1766899343604,-342.30082939,0.00013273,2]
[399937843,1766899351048,1476.83385148,0.00013172,2]
[399937844,1766899362173,-51.69753776,0.00013273,2]
[399937845,1766899362197,-500.0,0.00013273,2]
[399937846,1766899362221,-500.0,0.00013273,2]
[399937847,1766899362245,-150.05774631,0.00013273,2]
[399937848,1766899364245,-349.94225369,0.00013273,2]
[399937849,1766899364270,-18.39930246,0.00013273,2]
[399937850,1766899375747,1570.09684022,0.00013172,2]
[399937851,1766899498627,-327.42938793,0.00013273,2]
[399937852,1766899498649,-594.61838703,0.00013273,2]
[399937853,1766899498670,-500.0,0.00013273,2]
[399937854,1766899498689,-500.0,0.00013273,2]
[399937855,1766899498710,-702.0836533,0.00013699,2]
[399937856,1766899498730,-427.88922684,0.00013699,2]
[399937857,1766899498750,-187.99,0.000138,2]
[399937858,1766899498771,-500.0,0.00013814,2]
[399937859,1766899498792,-500.0,0.00013814,2]
[399937860,1766899498813,-500.0,0.00013814,2]
[399937861,1766899498834,-259.9893449,0.00013814,2]
[399937862,1766899502841,-300.0,0.00013813,2]
[399937863,1766899502862,-240.0106551,0.00013814,2]
[399937864,1766899502884,-500.0,0.00013814,2]
[399937865,1766899502906,-500.0,0.00013814,2]
[399937866,1766899502930,-500.0,0.00013814,2]
[399937867,1766899502951,-500.0,0.00013814,2]
[399937868,1766899502972,-500.0,0.00013814,2]
[399937869,1766899502992,-500.0,0.00013814,2]
[399937870,1766899503034,-500.0,0.00013814,2]
[399937871,1766899503059,-197.71986216,0.00013814,2]
[399937872,1766899503084,-606.45852616,0.00013814,2]
[399937873,1766899503108,-155.81095658,0.00013814,2]
[399937874,1766899509497,-173.4444219,0.00013273,2]
[399937875,1766899509522,-1200.0,0.00013813,2]
[399937876,1766899509547,-344.18904342,0.00013814,2]
[399937877,1766899509573,-509.64949967,0.00013814,2]
[399937878,1766899509600,-500.0,0.00013814,2]
[399937879,1766899509625,-500.0,0.00013814,2]
[399937880,1766899509650,-500.0,0.00013814,2]
[399937881,1766899509675,-500.0,0.00013814,2]
[399937882,1766899509699,-500.0,0.00013814,2]
[399937883,1766899509723,-272.71703501,0.00013814,2]
[399937884,1766899515803,-227.28296499,0.00013814,2]
[399937885,1766899515826,-500.0,0.00013814,2]
[399937886,1766899515849,-500.0,0.00013814,2]
[399937887,1766899515873,-500.0,0.00013814,2]
[399937888,1766899515897,-500.0,0.00013814,2]
[399937889,1766899515923,-500.0,0.00013814,2]
[399937890,1766899515947,-500.0,0.00013814,2]
[399937891,1766899515970,-500.0,0.00013814,2]
[399937892,1766899515992,-500.0,0.00013814,2]
[399937893,1766899516015,-500.0,0.00013814,2]
[399937894,1766899516039,-272.71703501,0.00013814,2]
[399937895,1766899522340,-310.23,0.000138,2]
[399937896,1766899522366,-227.28296499,0.00013814,2]
[399937897,1766899522394,-500.0,0.00013814,2]
[399937898,1766899522420,-500.0,0.00013814,2]
[399937899,1766899522446,-500.0,0.00013814,2]
[399937900,1766899522470,-500.0,0.00013814,2]
[399937901,1766899522663,-500.0,0.00013814,2]
[399937902,1766899522739,-500.0,0.00013814,2]
[399937903,1766899522764,-500.0,0.00013814,2]
[399937904,1766899522789,-500.0,0.00013814,2]
[399937905,1766899522813,-318.39132379,0.00013814,2]
[399937906,1766899522836,-144.09571122,0.00013814,2]
[399937907,1766899524856,-355.90428878,0.00013814,2]
[399937908,1766899524881,-500.0,0.00013814,2]
[399937909,1766899524905,-178.49539179,0.00013814,2]
[399937910,1766899524927,-174.60076174,0.00013815,2]
[399937911,1766899524948,-1000.0,0.00013821,2]
[399937912,1766899524970,-2790.99955769,0.00013995,2]
[399937913,1766899533266,-191.5655,0.00013994,2]
[399937914,1766899533304,-561.91665317,0.00013995,2]
[399937915,1766899533333,-500.0,0.00014093,2]
[399937916,1766899533359,-270.80560312,0.00014093,2]
[399937917,1766899533387,-475.71224371,0.00014093,2]
[399937918,1766899536044,-24.28775629,0.00014093,2]
[399937919,1766899536068,-500.0,0.00014093,2]
[399937920,1766899536093,-549.86669938,0.00014093,2]
[399937921,1766899536116,-269.93939593,0.00014093,2]
[399937922,1766899536137,-502.22066263,0.00014094,2]
[399937923,1766899536162,-153.68548577,0.00014095,2]
[399937924,1766899623081,-245.44372204,0.00013947,2]
[399937925,1766899623103,-300.0,0.00014094,2]
[399937926,1766899623126,-146.31451423,0.00014095,2]
[399937927,1766899623150,-300.0,0.00014095,2]
[399937928,1766899623175,-300.0,0.00014095,2]
[399937929,1766899623206,-300.0,0.00014095,2]
[399937930,1766899623237,-300.0,0.00014095,2]
[399937931,1766899623267,-108.24176373,0.00014095,2]
[399937932,1766899625137,-333.77483721,0.00013273,2]
[399937933,1766899625163,-95.63030606,0.00014095,2]
[399937934,1766899625199,-96.12793021,0.00014095,2]
[399937935,1766899625224,-88.05840275,0.00014095,2]
[399937936,1766899626328,-204.4105228,0.00013951,2]
[399937937,1766899626355,-211.94159725,0.00014095,2]
[399937938,1766899626379,-300.0,0.00014095,2]
[399937939,1766899626403,-300.0,0.00014095,2]
[399937940,1766899626430,-300.0,0.00014095,2]
[399937941,1766899626453,-300.0,0.00014095,2]
[399937942,1766899626477,-300.0,0.00014095,2]
[399937943,1766899626501,-83.64787995,0.00014095,2]
[399937944,1766899630535,-216.35212005,0.00014095,2]
[399937945,1766899630559,-300.0,0.00014095,2]
[399937946,1766899630581,-300.0,0.00014095,2]
[399937947,1766899630604,-600.0,0.00014095,2]
[399937948,1766899630623,-348.44266165,0.00014368,2]
[399937949,1766899630643,-235.2052183,0.00014434,2]
[399937952,1766899717796,6086.68019786,0.0001,2]
[399937953,1766899717819,10000.01,0.0001,2]
[399937954,1766899717840,10000.01,0.0001,2]
[399937955,1766899717862,3736.21878956,0.0001,2]
[399937956,1766899751124,-386.10135292,0.00013273,2]